Workbook

Sheet WTFQPVQ (hidden)

Sheet 1
A1: 附表1
A2: 部门收支总体情况表
D3: 单位：万元
A4: 收 入 | C4: 支 出
A5: 项 目 | B5: 预算数 | C5: 项 目 | D5: 预算数
A6: 一、一般公共预算拨款收入 | B6: 1,463.20 | C6: 一、一般公共服务支出
A7: 二、政府性基金预算拨款收入 | C7: 二、公共安全支出
A8: 三、国有资本经营预算算拨款收入 | C8: 三、教育支出
A9: 四、财政专户管理资金收入 | C9: 四、科学技术支出
A10: 五、事业收入 | B10: 77,488.77 | C10: 五、文化旅游体育与传媒支出
A11: 六、事业单位经营收入 | C11: 六、社会保障和就业支出 | D11: 3,665.00
A12: 七、上级补助收入 | C12: 七、卫生健康支出 | D12: 140,236.15
A13: 八、附属单位上缴收入 | C13: 八、节能环保支出
A14: 九、其他收入 | B14: 339.38 | C14: 九、城乡社区支出
C15: 十、农林水支出
C16: 十一、交通运输支出
C17: 十二、资源勘探工业信息等支出
C18: 十三、商业服务业等支出
C19: 十四、金融支出
C20: 十五、援助其他地区支出
C21: 十六、自然资源海洋气象等支出
C22: 十七、住房保障支出
C23: 十八、粮油物资储备支出
C24: 十九、国有资本经营预算支出
C25: 二十、灾害防治及应急管理支出
C26: 二十一、其他支出
C27: 二十二、债务付息支出
C28: 二十三、债务发行费用支出
A29: 本 年 收 入 合 计 | B29: =SUM(B6:B28) -> 79,291.35 | C29: 本 年 支 出 合 计 | D29: =SUM(D11:D28) -> 143,901.15
A30: 上年结转结余 | B30: 64,609.80 | C30: 年终结转结余
A31: 收 入 总 计 | B31: =SUM(B29:B30) -> 143,901.15 | C31: 支 出 总 计 | D31: =SUM(D29:D30) -> 143,901.15
A32: 注：财政专户管理资金收入是指教育收费收入；事业收入不含教育收费收入，下同。

Sheet 2
A1: 附表2
A2: 部门收入总体情况表
S4: 单位：万元
A5: 部门（单位）代码 | B5: 部门（单位）名称 | C5: 合计 | D5: 本年收入 | N5: 上年结转结余
D6: 小计 | E6: 一般公共预算 | F6: 政府性基金预算 | G6: 国有资本经营预算算 | H6: 财政专户管理资金 | I6: 事业收入 | J6: 事业单位经营收入 | K6: 上级补助收入 | L6: 附属单位上缴收入 | M6: 其他收入 | N6: 小计 | O6: 一般公共预算 | P6: 政府性基金预算 | Q6: 国有资本经营预算 | R6: 财政专户管理资金 | S6: 单位资金
A7: 368214 | B7: 天津市眼科医院 | C7: =D7+N7 -> 143,901.15 | D7: =+E7+I7+M7 -> 79,291.35 | E7: 1,463.20 | I7: 77,488.77 | M7: 339.38 | N7: 64,609.80 | S7: 64,609.80
A12: 合计 | C12: =D12+N12 -> 143,901.15 | D12: =+E12+I12+M12 -> 79,291.35 | E12: 1,463.20 | I12: 77,488.77 | M12: 339.38 | N12: 64,609.80 | S12: 64,609.80

Sheet 3
A1: 附表3
A2: 部门支出总体情况表
H3: 单位：万元
A4: 科目编码 | B4: 科目名称 | C4: 合 计 | D4: 基本支出 | E4: 项目支出 | F4: 事业单位经营支出 | G4: 上缴上级支出 | H4: 对附属单位补助支出
A7: 208 | B7: 社会保障和就业支出 | C7: =+D7+E7+F7+G7+H7 -> 3,665.00 | D7: =+D8 -> 3,665.00
A8: 20805 | B8: 行政事业单位养老支出 | C8: =+D8+E8+F8+G8+H8 -> 3,665.00 | D8: =+D9+D10 -> 3,665.00
A9: 2080505 | B9: 机关事业单位基本养老保险缴费支出 | C9: =+D9+E9+F9+G9+H9 -> 2,560.00 | D9: 2,560.00
A10: 2080506 | B10: 机关事业单位职业年金缴费支出 | C10: 1,105.00 | D10: 1,105.00
A11: 210 | B11: 卫生健康支出 | C11: 140,236.15 | D11: =+D12+D14+D16 -> 44,039.36 | E11: 96,196.79
A12: 21002 | B12: 公立医院 | C12: 138,511.75 | D12: =+D13 -> 42,374.96 | E12: =+E13 -> 96,136.79
A13: 2100208 | B13: 其他专科医院 | C13: =+D13+E13+F13+G13+H13 -> 138,511.75 | D13: 42,374.96 | E13: 96,136.79
A14: 21004 | B14: 公共卫生 | C14: 60.00 | D14: 0.00 | E14: 60.00
A15: 2100409 | B15: 重大公共卫生服务 | C15: 60.00 | D15: 0.00 | E15: 60.00
A16: 21011 | B16: 行政事业单位医疗 | C16: 1,664.40 | D16: 1,664.40
A17: 2101102 | B17: 事业单位医疗 | C17: 1,600.00 | D17: 1,600.00
A18: 2101199 | B18: 其他行政事业单位医疗支出 | C18: 64.40 | D18: 64.40
B19: 合 计 | C19: 143,901.15 | D19: =+D7+D11 -> 47,704.36 | E19: =+E7+E11 -> 96,196.79
A20: 注：本表按支出功能分类填列，明细到类、款、项三级科目。

Sheet 4
A1: 附表4
A2: 财政拨款收支总体情况表
D3: 单位：万元
A4: 收 入 | C4: 支 出
A5: 项 目 | B5: 预算数 | C5: 项 目 | D5: 预算数
A6: 一、本年收入 | B6: 1,463.20 | C6: 一、本年支出 | D6: 1,463.20
A7: （一）一般公共预算拨款 | B7: 1,463.20 | C7: （一）一般公共服务支出
A8: （二）政府性基金预算拨款 | C8: （二）公共安全支出
A9: （三）国有资本经营预算拨款 | C9: （三）教育支出
A10: 二、上年财政结转结余 | C10: （四）科学技术支出
A11: （一）一般公共预算拨款 | C11: （五）文化旅游体育与传媒支出
A12: （二）政府性基金预算拨款 | C12: （六）社会保障和就业支出 | D12: 895.40
A13: （三）国有资本经营预算拨款 | C13: （七）卫生健康支出 | D13: 567.80
C14: （八）节能环保支出
C15: （九）城乡社区支出
C16: （十）农林水支出
C17: （十一）交通运输支出
C18: （十二）资源勘探工业信息等支出
C19: （十三）商业服务业等支出
C20: （十四）金融支出
C21: （十五）援助其他地区支出
C22: （十六）自然资源海洋气象等支出
C23: （十七）住房保障支出
C24: （十八）粮油物资储备支出
C25: （十九）国有资本经营预算支出
C26: （二十）灾害防治及应急管理支出
C27: （二十一）其他支出
C28: （二十二）债务付息支出
C29: （二十三）债务发行费用支出
C30: 二、年终结转结余
A32: 收 入 总 计 | B32: 1,463.20 | C32: 支 出 总 计 | D32: 1,463.20
D33: 0.0000

Sheet 5
A1: 附表5
A2: 一般公共预算支出情况表
G3: 单位：万元
A4: 科目编码 | B4: 科目名称 | C4: 合计 | D4: 基本支出 | G4: 项目支出
D5: 合 计 | E5: 人员经费 | F5: 公用经费
A6: 208 | B6: 社会保障和就业支出 | C6: 895.40 | D6: 895.40 | E6: 895.40
A7: 20805 | B7: 行政事业单位养老支出 | C7: 895.40 | D7: 895.40 | E7: 895.40
A8: 2080505 | B8: 机关事业单位基本养老保险缴费支出 | C8: 596.90 | D8: 596.90 | E8: 596.90
A9: 2080506 | B9: 机关事业单位职业年金缴费支出 | C9: 298.50 | D9: 298.50 | E9: 298.50
A10: 210 | B10: 卫生健康支出 | C10: 567.80 | D10: 353.20 | E10: 353.20 | G10: 214.60
A11: 21002 | B11: 公立医院 | C11: 315.20 | D11: 160.60 | E11: 160.60 | G11: 154.60
A12: 2100208 | B12: 其他专科医院 | C12: 315.20 | D12: 160.60 | E12: 160.60 | G12: 154.60
A13: 21004 | B13: 公共卫生 | C13: 60.00 | G13: 60.00
A14: 2100409 | B14: 重大公共卫生服务 | C14: 60.00 | G14: 60.00
A15: 21011 | B15: 行政事业单位医疗 | C15: 192.60 | D15: 192.60 | E15: 192.60
A16: 2101102 | B16: 事业单位医疗 | C16: 128.20 | D16: 128.20 | E16: 128.20
A17: 2101199 | B17: 其他行政事业单位医疗支出 | C17: 64.40 | D17: 64.40 | E17: 64.40
B18: 合 计 | C18: 1,463.20 | D18: 1,248.60 | E18: 1,248.60 | G18: 214.60
A19: 注：本表按支出功能分类填列，明细到类、款、项三级科目。

Sheet 6
A1: 附表6
A2: 一般公共预算基本支出情况表
E3: 单位：万元
A4: 部门预算支出经济分类 | C4: 本年一般公共预算基本支出
A5: 科目编码 | B5: 科目名称 | C5: 合 计 | D5: 人员经费 | E5: 公用经费
A6: 301 | B6: 工资福利支出 | C6: =D6+E6 -> 1,063.00 | D6: =D7+D8+D9+D10+D11 -> 1,063.00
A7: 30108 | B7: 机关事业单位基本养老保险缴费 | C7: 596.90 | D7: 596.90
A8: 30109 | B8: 职业年金缴费 | C8: 298.50 | D8: 298.50
A9: 30110 | B9: 职工基本医疗保险缴费 | C9: 128.20 | D9: 128.20
A10: 30112 | B10: 其他社会保障缴费 | C10: 9.00 | D10: 9.00
A11: 30114 | B11: 医疗费 | C11: 30.40 | D11: 30.40
A12: 303 | B12: 对个人和家庭的补助 | C12: =C13+C14 -> 185.60 | D12: =D13+D14 -> 185.60
A13: 30302 | B13: 退休费 | C13: 151.60 | D13: 151.60
A14: 30307 | B14: 医疗费补助 | C14: 34.00 | D14: 34.00
B15: 合 计 | C15: =D15+E15 -> 1,248.60 | D15: =D6+D12 -> 1,248.60
A16: 注：本表按部门预算支出经济分类填列，明细到类、款两级科目。

Sheet 7
A1: 附表7
A2: 一般公共预算“三公”经费支出情况表
F4: 单位：万元
A5: “三公”经费合 计 | B5: 因公出国（境）费 | C5: 公务用车购置及运行费 | F5: 公务接待费
C6: 小 计 | D6: 公务用车购置费 | E6: 公务用车运行费
A7: 0 | B7: 0 | C7: 0 | F7: 0

Sheet 8
A1: 附表8
A2: 政府性基金预算支出情况表
E3: 单位：万元
A4: 科目编码 | B4: 科目名称 | C4: 本年政府性基金预算支出
C5: 合 计 | D5: 基本支出 | E5: 项目支出
B15: 合 计
A16: 注：本表按支出功能分类填列，明细到类、款、项三级科目。

Sheet 9
A1: 附表9
A2: 国有资本经营预算支出情况表
E3: 单位：万元
A4: 科目编码 | B4: 科目名称 | C4: 本年国有资本经营基金预算支出
C5: 合 计 | D5: 基本支出 | E5: 项目支出
B15: 合 计
A16: 注：本表按支出功能分类填列，明细到类、款、项三级科目。

Sheet 10
A1: 附表10
B2: 项目支出表
B3: 单位：万元
A4: 类型 | B4: 项目名称 | C4: 项目单位 | D4: 合计 | E4: 本年拨款 | H4: 财政拨款结转结余 | K4: 财政专户 管理资金 | L4: 单位资金
E5: 一般公共 预算 | F5: 政府性基金 预算 | G5: 国有资本 经营预算 | H5: 一般公共 预算 | I5: 政府性基金 预算 | J5: 国有资本 经营预算
A6: 特定目标类 | B6: 卫生健康对口支援-柔性组团式援疆帮扶补助（2024年） | C6: 天津市眼科医院 | D6: 4.00 | E6: 4.00
A7: 特定目标类 | B7: 卫生健康对口支援-援疆援藏医疗队补助（2024年） | C7: 天津市眼科医院 | D7: 6.50 | E7: 6.50
A8: 特定目标类 | B8: 卫生健康对口支援-援外医疗队补助（2024年） | C8: 天津市眼科医院 | D8: 8.30 | E8: 8.30
A9: 特定目标类 | B9: 住院医师规范化培训-01中央直达资金-2024年医疗服务与保障能力提升 | C9: 天津市眼科医院 | D9: 36.00 | E9: 36.00
A10: 特定目标类 | B10: 重点传染病及健康危害因素监测（学生常见病检测与干预）（2024年） | C10: 天津市眼科医院 | D10: 60.00 | E10: 60.00
A11: 特定目标类 | B11: 公立医院综合改革-01中央直达资金-2024年医疗服务与保障能力提升 | C11: 天津市眼科医院 | D11: 66.70 | E11: 66.70
A12: 特定目标类 | B12: 卫生健康人才培养-住院医师规范化培训（2024年） | C12: 天津市眼科医院 | D12: 16.00 | E12: 16.00
A13: 特定目标类 | B13: 卫生健康对口支援-柔性组团式援藏援甘等帮扶补助（2024年） | C13: 天津市眼科医院 | D13: 17.10 | E13: 17.10
A14: 特定目标类 | B14: 自有收入-药品耗材及资产购置（2024年） | C14: 天津市眼科医院 | D14: 34,968.94 | L14: 34,968.94
A15: 特定目标类 | B15: 自有收入-工程建设信息化及其他（2024年） | C15: 天津市眼科医院 | D15: 61,013.25 | L15: 61,013.25
A16: 合计 | D16: =SUM(D6:D15) -> 96,196.79 | E16: =SUM(E6:E13) -> 214.60 | L16: =SUM(L14:L15) -> 95,982.19
